fUSD/lending_fUSD_20250514
["ID","MTS","AMOUNT","RATE_DAILY","PERIOD"]
[360988134,1747183846257,-400.0,0.00010958,2]
[360988136,1747183846266,-5751.79,0.00010958,2]
[360988138,1747183846276,-634.23,0.00010958,2]
[360988140,1747183846286,-400.0,0.00010958,2]
[360988142,1747183846296,-400.0,0.00010958,2]
[360988144,1747183846305,-400.0,0.00010958,2]
[360988146,1747183846315,-400.0,0.00010958,2]
[360988148,1747183846325,-400.0,0.00010958,2]
[360988150,1747183846334,-406.33,0.00010958,2]
[360988152,1747183846344,-400.0,0.00010958,2]
[360988154,1747183846353,-400.0,0.00010958,2]
[360988156,1747183846363,-400.0,0.00010958,2]
[360988158,1747183846372,-400.0,0.00010958,2]
[360988160,1747183846382,-400.0,0.00010958,2]
[360988162,1747183846391,-400.0,0.00010958,2]
[360988164,1747183846401,-400.0,0.00010958,2]
[360988166,1747183846410,-400.0,0.00010958,2]
[360988168,1747183846419,-7250.46,0.00010958,2]
[360988170,1747183846430,-429.13,0.00010958,2]
[360988172,1747183846439,-400.0,0.00010958,2]
[360988174,1747183846448,-160.949755,0.00010958,2]
[360988175,1747183846457,-1110.78,0.00010958,2]
[360988176,1747183846467,-407.19068146,0.00010958,2]
[360988177,1747183846475,-1490.26,0.00010958,2]
[360988178,1747183846485,-500.0,0.00010958,2]
[360988179,1747183846494,-400.0,0.00010958,2]
[360988180,1747183846503,-445.61515128,0.00010958,2]
[360988181,1747183846512,-400.0,0.00010958,2]
[360988183,1747183846522,-1173.33,0.00010958,2]
[360988185,1747183846532,-400.0,0.00010958,2]
[360988187,1747183846541,-400.0,0.00010958,2]
[360988189,1747183846550,-3972.36,0.00010958,2]
[360988191,1747183846560,-400.0,0.00010958,2]
[360988193,1747183846569,-400.0,0.00010958,2]
[360988195,1747183846578,-157.15739224,0.00010958,2]
[360988197,1747183846588,-402.25055618,0.00010958,2]
[360988199,1747183846597,-400.0,0.00010958,2]
[360988201,1747183846606,-400.0,0.00010958,2]
[360988203,1747183846615,-1718.7,0.00010958,2]
[360988205,1747183846625,-430.67,0.00010958,2]
[360988207,1747183846634,-400.0,0.00010958,2]
[360988209,1747183846643,-296.55509389,0.00010958,2]
[360988211,1747183846653,-400.0,0.00010958,2]
[360988213,1747183846663,-2236.75,0.00010958,2]
[360988215,1747183846673,-400.0,0.00010958,2]
[360988217,1747183846682,-400.0,0.00010958,2]
[360988220,1747183846692,-400.0,0.00010958,2]
[360988221,1747183846702,-3456.53,0.00010958,2]
[360988223,1747183846711,-400.0,0.00010958,2]
[360988225,1747183846720,-400.0,0.00010958,2]
[360988227,1747183846730,-400.0,0.00010958,2]
[360988229,1747183846741,-400.0,0.00010958,2]
[360988231,1747183846751,-400.0,0.00010958,2]
[360988234,1747183846760,-1296.48,0.00010958,2]
[360988236,1747183846769,-400.0,0.00010958,2]
[360988238,1747183846778,-500.0,0.00010958,2]
[360988240,1747183846787,-400.0,0.00010958,2]
[360988242,1747183846796,-400.0,0.00010958,2]
[360988245,1747183846807,-2220.77,0.00010958,2]
[360988247,1747183846817,-402.70141798,0.00010958,2]
[360988249,1747183846826,-400.0,0.00010958,2]
[360988251,1747183846835,-400.0,0.00010958,2]
[360988253,1747183846843,-400.0,0.00010958,2]
[360988254,1747183846852,-1567.07,0.00010958,2]
[360988256,1747183846861,-907.03,0.00010958,2]
[360988258,1747183846874,-400.0,0.00010958,2]
[360988261,1747183846884,-753.96,0.00010958,2]
[360988263,1747183846894,-400.0,0.00010958,2]
[360988265,1747183846905,-400.0,0.00010958,2]
[360988267,1747183846914,-400.0,0.00010958,2]
[360988269,1747183846923,-400.0,0.00010958,2]
[360988271,1747183846933,-400.0,0.00010958,2]
[360988273,1747183846943,-649.0,0.00010958,2]
[360988275,1747183846952,-670.92,0.00010958,2]
[360988277,1747183846961,-404.71577477,0.00010958,2]
[360988279,1747183846971,-400.0,0.00010958,2]
[360988281,1747183846980,-5761.25,0.00010958,2]
[360988283,1747183846989,-400.0,0.00010958,2]
[360988285,1747183846998,-400.0,0.00010958,2]
[360988287,1747183847007,-400.0,0.00010958,2]
[360988289,1747183847016,-400.0,0.00010958,2]
[360988291,1747183847025,-400.0,0.00010958,2]
[360988293,1747183847035,-400.0,0.00010958,2]
[360988295,1747183847043,-1156.49,0.00010958,2]
[360988297,1747183847053,-400.0,0.00010958,2]
[360988299,1747183847062,-400.0,0.00010958,2]
[360988301,1747183847070,-458.08,0.00010958,2]
[360988303,1747183847079,-400.0,0.00010958,2]
[360988305,1747183847088,-628.0,0.00010958,2]
[360988307,1747183847097,-1887.62,0.00010958,2]
[360988309,1747183847106,-419.02302411,0.00010958,2]
[360988311,1747183847115,-400.0,0.00010958,2]
[360988313,1747183847124,-400.0,0.00010958,2]
[360988315,1747183847134,-400.0,0.00010958,2]
[360988317,1747183847144,-911.52,0.00010958,2]
[360988319,1747183847155,-400.0,0.00010958,2]
[360988321,1747183847164,-579.49,0.00010958,2]
[360988323,1747183847173,-873.36,0.00010958,2]
[360988325,1747183847182,-400.0,0.00010958,2]
[360988327,1747183847192,-1684.84,0.00010958,2]
[360988329,1747183847201,-424.86,0.00010958,2]
[360988331,1747183847211,-400.0,0.00010958,2]
[360988332,1747183847219,-400.0,0.00010958,2]
[360988335,1747183847228,-400.0,0.00010958,2]
[360988336,1747183847238,-400.0,0.00010958,2]
[360988338,1747183847248,-303.52877973,0.00010958,2]
[360988340,1747183847259,-400.0,0.00010958,2]
[360988342,1747183847273,-400.0,0.00010958,2]
[360988345,1747183847287,-478.56,0.00010958,2]
[360988347,1747183847299,-428.81,0.00010958,2]
[360988349,1747183847308,-400.0,0.00010958,2]
[360988351,1747183847317,-5579.24,0.00010958,2]
[360988352,1747183847327,-400.0,0.00010958,2]
[360988354,1747183847336,-1122.29,0.00010958,2]
[360988356,1747183847347,-556.13,0.00010958,2]
[360988358,1747183847356,-646.31,0.00010958,2]
[360988360,1747183847365,-400.0,0.00010958,2]
[360988362,1747183847374,-562.7,0.00010958,2]
[360988364,1747183847384,-737.59,0.00010958,2]
[360988366,1747183847393,-400.0,0.00010958,2]
[360988368,1747183847403,-400.0,0.00010958,2]
[360988370,1747183847412,-400.0,0.00010958,2]
[360988372,1747183847420,-400.0,0.00010958,2]
[360988374,1747183847431,-402.23,0.00010958,2]
[360988376,1747183847440,-400.0,0.00010958,2]
[360988378,1747183847449,-1228.38,0.00010958,2]
[360988380,1747183847458,-400.0,0.00010958,2]
[360988382,1747183847468,-467.88,0.00010958,2]
[360988384,1747183847478,-400.0,0.00010958,2]
[360988386,1747183847487,-507.05,0.00010958,2]
[360988388,1747183847495,-400.0,0.00010958,2]
[360988390,1747183847505,-400.0,0.00010958,2]
[360988392,1747183847515,-426.41,0.00010958,2]
[360988394,1747183847524,-150.0,0.00010958,2]
[360988396,1747183847533,-400.0,0.00010958,2]
[360988398,1747183847542,-400.0,0.00010958,2]
[360988400,1747183847552,-400.0,0.00010958,2]
[360988402,1747183847561,-1577.16,0.00010958,2]
[360988404,1747183847570,-400.0,0.00010958,2]
[360988406,1747183847579,-754.12,0.00010958,2]
[360988408,1747183847587,-400.0,0.00010958,2]
[360988410,1747183847597,-1828.08,0.00010958,2]
[360988411,1747183847606,-400.0,0.00010958,2]
[360988413,1747183847615,-587.55,0.00010958,2]
[360988415,1747183847625,-500.0,0.00010959,2]
[360988417,1747183847634,-2000.0,0.00010959,2]
[360988419,1747183847644,-200.0,0.00010959,2]
[360988421,1747183847654,-200.0,0.00010959,2]
[360988423,1747183847664,-2536.39,0.00010959,2]
[360988425,1747183847673,-1349.671,0.00010961,2]
[360988427,1747183847682,-175.10731161,0.00010961,2]
[360988429,1747183847691,-500.0,0.00010973,2]
[360988431,1747183847701,-500.0,0.00010973,2]
[360988433,1747183847710,-524.29936154,0.00010973,2]
[360988435,1747183847719,-500.0,0.00010973,2]
[360988437,1747183847729,-500.0,0.00010973,2]
[360988439,1747183847740,-500.0,0.00010973,2]
[360988441,1747183847750,-500.0,0.00010973,2]
[360988443,1747183847759,-500.0,0.00010973,2]
[360988445,1747183847769,-500.0,0.00010973,2]
[360988447,1747183847778,-500.0,0.00010973,2]
[360988449,1747183847788,-500.40684714,0.00010973,2]
[360988451,1747183847799,-500.0,0.00010973,2]
[360988454,1747183847808,-500.0,0.00010973,2]
[360988456,1747183847819,-500.0,0.00010973,2]
[360988458,1747183847828,-500.0,0.00010973,2]
[360988460,1747183847837,-23864.8442414,0.00010992,2]
[360988461,1747183847848,-240.64723207,0.00010999,2]
[360988463,1747183847857,-400.0,0.00010999,2]
[360988465,1747183847866,-399.11968,0.00010999,2]
[360988467,1747183847876,-400.0,0.00010999,2]
[360988469,1747183847886,-1000.0,0.00010999,2]
[360988471,1747183847895,-1000.0,0.00010999,2]
[360988473,1747183847906,-300.0,0.00010999,2]
[360988475,1747183847915,-300.0,0.00010999,2]
[360988477,1747183847924,-582.0,0.00011,2]
[360988479,1747183847933,-250.18007473,0.00011,2]
[360988481,1747183847943,-553598.43579884,0.00011,2]
[360988483,1747183847952,-767570.47311297,0.00011,2]
[360988485,1747183847962,-5775.81040249,0.00011,2]
[360988487,1747183847971,-1106803.65859278,0.00011,2]
[360988492,1747183848007,-9407.19625015,0.00011,2]
[360988494,1747183848018,-8486.40956713,0.00011,2]
[360988497,1747183848029,-268.27999999,0.00011,2]
[360988637,1747183849403,-253.18870924,0.00010468,2]
[360988641,1747183849433,-10182.25523703,0.00010468,2]
[360988706,1747183850305,-4094.18755509,0.00010468,2]
[360988708,1747183850314,-523.07,0.00010958,2]
[360988710,1747183850323,-400.0,0.00010958,2]
[360988712,1747183850332,-400.0,0.00010958,2]
[360988714,1747183850342,-4962.74244491,0.00011,2]
[360988740,1747183850585,-378.43528873,0.00011,2]
[360988752,1747183850699,-2059.6340207,0.00011,2]
[360988754,1747183850710,-723.73,0.00011,2]
[360989819,1747183862546,1127.89,8.451e-05,2]
[360991231,1747184698453,2005.34953011,0.0001,120]
[360991232,1747184714741,-5492.58,0.0001,2]
[360991233,1747184714765,-23900.0,0.00010002,2]
[360991234,1747184714789,-200.0,0.00010013,2]
[360991235,1747184714813,-1000.0,0.00010026,2]
[360991236,1747184714836,-4394.07,0.000101,2]
[360991237,1747184714860,-200.0,0.00010345,2]
[360991238,1747184714883,-1200.0,0.00010714,2]
[360991239,1747184714909,-1127.89,0.00010715,2]
[360991240,1747184714932,-526.40799017,0.00010858,2]
[360991241,1747184714955,-151.59603848,0.00010858,2]
[360991242,1747184714977,-10998.1827,0.00010858,2]
[360991243,1747184715000,-1000.0,0.00010899,2]
[360991244,1747184715024,-150.0,0.00010899,2]
[360991245,1747184715048,-46895.5424,0.000109,2]
[360991246,1747184715071,-150.99,0.000109,2]
[360991247,1747184715093,-197.87,0.000109,2]
[360991248,1747184715118,-158.52414587,0.000109,2]
[360991249,1747184715140,-664.0,0.000109,2]
[360991250,1747184715167,-191.33582661,0.000109,2]
[360991251,1747184715191,-207.4,0.00010951,2]
[360991252,1747184715214,-400.0,0.00010958,2]
[360991253,1747184715237,-400.0,0.00010958,2]
[360991254,1747184715261,-400.0,0.00010958,2]
[360991255,1747184715285,-400.0,0.00010958,2]
[360991256,1747184715308,-400.0,0.00010958,2]
[360991257,1747184715331,-491.18,0.00010958,2]
[360991258,1747184715354,-400.0,0.00010958,2]
[360991259,1747184715377,-400.0,0.00010958,2]
[360991260,1747184715402,-400.0,0.00010958,2]
[360991261,1747184715425,-400.0,0.00010958,2]
[360991262,1747184715448,-400.0,0.00010958,2]
[360991263,1747184715471,-400.0,0.00010958,2]
[360991264,1747184715495,-506.18,0.00010958,2]
[360991265,1747184715517,-400.0,0.00010958,2]
[360991266,1747184715540,-400.0,0.00010958,2]
[360991267,1747184715564,-400.0,0.00010958,2]
[360991268,1747184715588,-400.0,0.00010958,2]
[360991269,1747184715610,-400.0,0.00010958,2]
[360991270,1747184715633,-400.0,0.00010958,2]
[360991271,1747184715659,-606.51,0.00010958,2]
[360991272,1747184715681,-400.0,0.00010958,2]
[360991273,1747184715705,-400.0,0.00010958,2]
[360991274,1747184715728,-250.0802389,0.00010958,2]
[360991275,1747184715753,-400.0,0.00010958,2]
[360991276,1747184715776,-400.0,0.00010958,2]
[360991277,1747184715799,-400.0,0.00010958,2]
[360991278,1747184715823,-400.0,0.00010958,2]
[360991279,1747184715847,-400.0,0.00010958,2]
[360991280,1747184715870,-970.5,0.00010958,2]
[360991281,1747184715894,-400.0,0.00010958,2]
[360991282,1747184715919,-590.07,0.00010958,2]
[360991283,1747184715943,-400.0,0.00010958,2]
[360991284,1747184715967,-400.0,0.00010958,2]
[360991285,1747184715991,-646.1,0.00010958,2]
[360991286,1747184716018,-400.0,0.00010958,2]
[360991287,1747184716043,-400.0,0.00010958,2]
[360991288,1747184716066,-400.0,0.00010958,2]
[360991289,1747184716216,-491.85,0.00010958,2]
[360991290,1747184716270,-400.0,0.00010958,2]
[360991291,1747184716294,-568.03,0.00010958,2]
[360991292,1747184716318,-400.0,0.00010958,2]
[360991293,1747184716344,-735.02,0.00010958,2]
[360991294,1747184716368,-400.0,0.00010958,2]
[360991295,1747184716394,-1003.73,0.00010958,2]
[360991296,1747184716426,-400.0,0.00010958,2]
[360991297,1747184716452,-400.0,0.00010958,2]
[360991298,1747184716476,-432.21,0.00010958,2]
[360991299,1747184716501,-400.0,0.00010958,2]
[360991300,1747184716526,-400.0,0.00010958,2]
[360991301,1747184716549,-400.0,0.00010958,2]
[360991302,1747184716573,-413.41,0.00010958,2]
[360991303,1747184716597,-938.24,0.00010958,2]
[360991304,1747184716620,-400.0,0.00010958,2]
[360991305,1747184716644,-400.0,0.00010958,2]
[360991306,1747184716670,-400.0,0.00010958,2]
[360991307,1747184716694,-400.0,0.00010958,2]
[360991308,1747184716719,-961.36,0.00010958,2]
[360991309,1747184716744,-400.0,0.00010958,2]
[360991310,1747184716768,-400.0,0.00010958,2]
[360991311,1747184716793,-442.62,0.00010958,2]
[360991312,1747184716816,-239.67421768,0.00010958,2]
[360991313,1747184716840,-400.0,0.00010958,2]
[360991314,1747184716864,-445.02014588,0.00010958,2]
[360991315,1747184716888,-426.09,0.00010958,2]
[360991316,1747184716916,-232.80543721,0.00010958,2]
[360991317,1747184716939,-400.0,0.00010958,2]
[360991318,1747184716965,-400.0,0.00010958,2]
[360991319,1747184716990,-502.43673947,0.00010958,2]
[360991320,1747184717015,-400.0,0.00010958,2]
[360991321,1747184717042,-1700.66,0.00010958,2]
[360991322,1747184717067,-400.0,0.00010958,2]
[360991323,1747184717092,-400.0,0.00010958,2]
[360991324,1747184717116,-452.61,0.00010958,2]
[360991325,1747184717140,-400.0,0.00010958,2]
[360991326,1747184717169,-1352.11,0.00010958,2]
[360991327,1747184717193,-696.88,0.00010958,2]
[360991328,1747184717217,-400.0,0.00010958,2]
[360991329,1747184717240,-400.0,0.00010958,2]
[360991330,1747184717264,-400.0,0.00010958,2]
[360991331,1747184717288,-1810.61,0.00010958,2]
[360991332,1747184717312,-1047.22,0.00010958,2]
[360991333,1747184717335,-400.0,0.00010958,2]
[360991334,1747184717360,-400.0,0.00010958,2]
[360991335,1747184717384,-400.0,0.00010958,2]
[360991336,1747184717414,-400.0,0.00010958,2]
[360991337,1747184717438,-400.0,0.00010958,2]
[360991338,1747184717462,-400.0,0.00010958,2]
[360991339,1747184717486,-400.0,0.00010958,2]
[360991340,1747184717510,-489.06,0.00010958,2]
[360991341,1747184717533,-400.0,0.00010958,2]
[360991342,1747184717557,-520.04,0.00010958,2]
[360991343,1747184717582,-1085.37,0.00010958,2]
[360991344,1747184717607,-400.0,0.00010958,2]
[360991345,1747184717630,-400.0,0.00010958,2]
[360991346,1747184717658,-873.55,0.00010958,2]
[360991347,1747184717682,-400.0,0.00010958,2]
[360991348,1747184717708,-400.0,0.00010958,2]
[360991349,1747184717731,-400.0,0.00010958,2]
[360991350,1747184717755,-400.0,0.00010958,2]
[360991351,1747184717779,-1111.58,0.00010958,2]
[360991352,1747184717805,-400.0,0.00010958,2]
[360991353,1747184717829,-1934.11,0.00010958,2]
[360991354,1747184717852,-163.87114196,0.00010958,2]
[360991355,1747184717876,-400.0,0.00010958,2]
[360991356,1747184717902,-1204.27,0.00010958,2]
[360991357,1747184717925,-400.0,0.00010958,2]
[360991358,1747184717949,-400.0,0.00010958,2]
[360991359,1747184717972,-400.0,0.00010958,2]
[360991360,1747184718000,-667.24,0.00010958,2]
[360991361,1747184718025,-400.0,0.00010958,2]
[360991362,1747184718050,-400.0,0.00010958,2]
[360991363,1747184718076,-858.3,0.00010958,2]
[360991364,1747184718101,-366.96322458,0.00010958,2]
[360991365,1747184718126,-400.0,0.00010958,2]
[360991366,1747184718153,-400.0,0.00010958,2]
[360991367,1747184718177,-400.0,0.00010958,2]
[360991368,1747184718207,-400.0,0.00010958,2]
[360991369,1747184718232,-400.0,0.00010958,2]
[360991370,1747184718257,-759.72,0.00010958,2]
[360991371,1747184718280,-400.0,0.00010958,2]
[360991372,1747184718304,-400.0,0.00010958,2]
[360991373,1747184718328,-400.0,0.00010958,2]
[360991374,1747184718353,-618.43,0.00010958,2]
[360991375,1747184718558,-502.6,0.00010958,2]
[360991376,1747184718584,-400.0,0.00010958,2]
[360991377,1747184718608,-419.84,0.00010958,2]
[360991378,1747184718632,-1635.12,0.00010958,2]
[360991379,1747184718658,-1538.12,0.00010958,2]
[360991380,1747184718683,-400.0,0.00010958,2]
[360991381,1747184718708,-584.64,0.00010958,2]
[360991382,1747184718733,-1409.78,0.00010958,2]
[360991383,1747184718759,-400.0,0.00010958,2]
[360991384,1747184718784,-400.0,0.00010958,2]
[360991385,1747184718808,-400.0,0.00010958,2]
[360991386,1747184718833,-400.0,0.00010958,2]
[360991387,1747184718857,-400.0,0.00010958,2]
[360991388,1747184718881,-400.0,0.00010958,2]
[360991389,1747184718908,-400.0,0.00010958,2]
[360991390,1747184718933,-909.89,0.00010958,2]
[360991391,1747184718958,-520.79043219,0.00010958,2]
[360991392,1747184718983,-1245.2,0.00010958,2]
[360991393,1747184719010,-797.43,0.00010958,2]
[360991394,1747184719040,-400.0,0.00010958,2]
[360991395,1747184719064,-400.0,0.00010958,2]
[360991396,1747184719088,-400.0,0.00010958,2]
[360991397,1747184719114,-404.81620413,0.00010958,2]
[360991398,1747184719139,-400.0,0.00010958,2]
[360991399,1747184719166,-400.0,0.00010958,2]
[360991400,1747184719192,-1105.28,0.00010958,2]
[360991401,1747184719218,-400.0,0.00010958,2]
[360991402,1747184719243,-400.0,0.00010958,2]
[360991403,1747184719268,-500.0,0.00010958,2]
[360991404,1747184719294,-500.0,0.00010958,2]
[360991405,1747184719318,-243.61596216,0.00010958,2]
[360991406,1747184719342,-546.58609216,0.00010958,2]
[360991407,1747184719366,-477.15,0.00010958,2]
[360991408,1747184719391,-400.0,0.00010958,2]
[360991409,1747184719417,-400.0,0.00010958,2]
[360991410,1747184719443,-400.0,0.00010958,2]
[360991411,1747184719469,-400.0,0.00010958,2]
[360991412,1747184719494,-534.2405525,0.00010958,2]
[360991413,1747184719519,-374.7705165,0.00010958,2]
[360991414,1747184719543,-400.0,0.00010958,2]
[360991415,1747184719565,-403.83060566,0.00010958,2]
[360991416,1747184719590,-400.0,0.00010958,2]
[360991417,1747184719629,-442.04,0.00010958,2]
[360991418,1747184719675,-400.0,0.00010958,2]
[360991419,1747184719714,-482.22,0.00010958,2]
[360991420,1747184719757,-402.0283169,0.00010958,2]
[360991421,1747184719798,-400.0,0.00010958,2]
[360991422,1747184719841,-939.12,0.00010958,2]
[360991423,1747184719878,-515.44,0.00010958,2]
[360991424,1747184719918,-694.7,0.00010958,2]
[360991425,1747184719956,-400.0,0.00010958,2]
[360991426,1747184719993,-444.17,0.00010958,2]
[360991427,1747184720030,-400.0,0.00010958,2]
[360991428,1747184720067,-400.0,0.00010958,2]
[360991429,1747184720102,-529.61420051,0.00010958,2]
[360991430,1747184720137,-1020.33,0.00010958,2]
[360991431,1747184720176,-400.0,0.00010958,2]
[360991432,1747184720213,-1909.3,0.00010958,2]
[360991433,1747184720249,-400.0,0.00010958,2]
[360991434,1747184720288,-400.0,0.00010958,2]
[360991435,1747184720326,-400.0,0.00010958,2]
[360991436,1747184720362,-400.0,0.00010958,2]
[360991437,1747184720399,-400.0,0.00010958,2]
[360991438,1747184720444,-400.0,0.00010958,2]
[360991439,1747184720481,-400.0,0.00010958,2]
[360991440,1747184720519,-596.4,0.00010958,2]
[360991441,1747184720556,-400.0,0.00010958,2]
[360991442,1747184720592,-400.0,0.00010958,2]
[360991443,1747184720628,-400.0,0.00010958,2]
[360991444,1747184720665,-400.0,0.00010958,2]
[360991445,1747184720701,-400.0,0.00010958,2]
[360991446,1747184720737,-400.0,0.00010958,2]
[360991447,1747184720774,-790.73,0.00010958,2]
[360991448,1747184720810,-400.0,0.00010958,2]
[360991449,1747184720846,-1849.867383,0.00010958,2]
[360991450,1747184720884,-400.0,0.00010958,2]
[360991451,1747184720922,-166.23658401,0.00010958,2]
[360991452,1747184720959,-401.54717264,0.00010958,2]
[360991453,1747184720999,-400.0,0.00010958,2]
[360991454,1747184721036,-400.0,0.00010958,2]
[360991455,1747184721073,-400.0,0.00010958,2]
[360991456,1747184721111,-880.6,0.00010958,2]
[360991457,1747184721147,-784.48,0.00010958,2]
[360991458,1747184721185,-400.0,0.00010958,2]
[360991459,1747184721491,-400.0,0.00010958,2]
[360991460,1747184721518,-400.0,0.00010958,2]
[360991461,1747184721544,-400.0,0.00010958,2]
[360991462,1747184721570,-400.0,0.00010958,2]
[360991463,1747184721594,-400.0,0.00010958,2]
[360991464,1747184721617,-387.13287643,0.00010958,2]
[360991465,1747184721643,-400.0,0.00010958,2]
[360991466,1747184721669,-400.0,0.00010958,2]
[360991467,1747184721695,-479.24942117,0.00010958,2]
[360991468,1747184721720,-400.0,0.00010958,2]
[360991469,1747184721745,-400.0,0.00010958,2]
[360991470,1747184721769,-400.0,0.00010958,2]
[360991471,1747184721794,-412.25,0.00010958,2]
[360991472,1747184721818,-401.29784016,0.00010958,2]
[360991473,1747184721842,-400.0,0.00010958,2]
[360991474,1747184721866,-1070.99,0.00010958,2]
[360991475,1747184721891,-400.0,0.00010958,2]
[360991476,1747184721919,-400.0,0.00010958,2]
[360991477,1747184721944,-178.97142391,0.00010958,2]
[360991478,1747184721969,-400.43520803,0.00010958,2]
[360991479,1747184721995,-13932.08833,0.00010958,2]
[360991480,1747184722023,-691.205913,0.00010958,2]
[360991481,1747184722049,-1124.44,0.00010958,2]
[360991482,1747184722074,-400.0,0.00010958,2]
[360991483,1747184722104,-400.0,0.00010958,2]
[360991484,1747184722129,-400.0,0.00010958,2]
[360991485,1747184722155,-401.40366535,0.00010958,2]
[360991486,1747184722178,-400.33975803,0.00010958,2]
[360991487,1747184722202,-403.45934934,0.00010958,2]
[360991488,1747184722226,-400.0,0.00010958,2]
[360991489,1747184722250,-590.68,0.00010958,2]
[360991490,1747184722275,-400.0,0.00010958,2]
[360991491,1747184722299,-400.0,0.00010958,2]
[360991492,1747184722324,-1501.78,0.00010958,2]
[360991493,1747184722348,-400.0,0.00010958,2]
[360991494,1747184722372,-444.63695609,0.00010958,2]
[360991495,1747184722396,-400.0,0.00010958,2]
[360991496,1747184722422,-400.0,0.00010958,2]
[360991497,1747184722446,-400.0,0.00010958,2]
[360991498,1747184722469,-400.0,0.00010958,2]
[360991499,1747184722493,-400.0,0.00010958,2]
[360991500,1747184722516,-400.0,0.00010958,2]
[360991501,1747184722540,-400.0,0.00010958,2]
[360991502,1747184722564,-400.0,0.00010958,2]
[360991503,1747184722588,-400.0,0.00010958,2]
[360991504,1747184722612,-501.27,0.00010958,2]
[360991505,1747184722636,-400.0,0.00010958,2]
[360991506,1747184722663,-400.0,0.00010958,2]
[360991507,1747184722687,-400.0,0.00010958,2]
[360991508,1747184722712,-400.0,0.00010958,2]
[360991509,1747184722736,-569.7,0.00010958,2]
[360991510,1747184722761,-400.0,0.00010958,2]
[360991511,1747184722786,-400.0,0.00010958,2]
[360991512,1747184722811,-405.44340776,0.00010958,2]
[360991513,1747184722835,-590.41,0.00010958,2]
[360991514,1747184722860,-400.0,0.00010958,2]
[360991515,1747184722885,-323.14483561,0.00010958,2]
[360991516,1747184722914,-400.0,0.00010958,2]
[360991517,1747184722938,-400.0,0.00010958,2]
[360991518,1747184722963,-400.0,0.00010958,2]
[360991519,1747184722988,-400.0,0.00010958,2]
[360991520,1747184723017,-400.0,0.00010958,2]
[360991521,1747184723045,-400.0,0.00010958,2]
[360991522,1747184723071,-400.0,0.00010958,2]
[360991523,1747184723098,-400.0,0.00010958,2]
[360991524,1747184723122,-400.0,0.00010958,2]
[360991525,1747184723147,-1511.45,0.00010958,2]
[360991526,1747184723176,-400.0,0.00010958,2]
[360991527,1747184723201,-547.95,0.00010958,2]
[360991528,1747184723227,-400.0,0.00010958,2]
[360991529,1747184723252,-400.0,0.00010958,2]
[360991530,1747184723277,-400.0,0.00010958,2]
[360991531,1747184723301,-400.0,0.00010958,2]
[360991532,1747184723326,-400.0,0.00010958,2]
[360991533,1747184723350,-400.0,0.00010958,2]
[360991534,1747184723375,-400.0,0.00010958,2]
[360991535,1747184723399,-400.0,0.00010958,2]